Cogmind - Beta 16 @@@ ROGUE MODE // 2025.10.27 @ 21:29:20 Player: Rocko1345 Result: Destroyed by H-88 Terminator with KE Penetrator Performance ------------- Evolutions (8) 4000 Regions Visited (16) 3200 Robots Destroyed (33) 165 Value Destroyed (1289) 1289 Prototype IDs (8) 160 Alien Tech Used (0) 0 Bonus (3172) 3172 TOTAL SCORE: 11986 Bonus ------- Follower Combat Kills 1359 Entered Garrisons 600 Used RIF Installer 1000 Registered with UFD 300 Friendly Fire -87 Cogmind --------- Core Integrity 0/1450 Matter 207/300 Energy 330/430 System Corruption 0% Temperature Cool (0) Movement Hovering (56) Location -2/Research Parts ------- > --- POWER (2) -------- Light Particle Reactor Quantum Reactor > --- PROPULSION (4) --- Antigrav Array Antigrav Array > --- UTILITY (15) ----- Relay Coupler [Swarmer] (12) > --- WEAPON (2) ------- (None) > --- INVENTORY (5) ---- Relay Coupler [Sentry] (25) Peak State ------------ > --- POWER ------------ Light Antimatter Reactor Micro Antimatter Reactor > --- PROPULSION ------- Improved Hover Unit Improved Hover Unit Gyrokinetic Inverter Gyrokinetic Inverter > --- UTILITY ---------- Machine Analyzer Enhanced Optical Array Advanced Sensor Array Advanced Signal Interpreter Advanced Signal Interpreter Core Analyzer Advanced Shield Generator Hacking Suite Improved Hacking Suite Experimental Hacking Suite Advanced System Shield Relay Coupler [Grunt] Improved System Guard > --- WEAPON ----------- Compact HERF Cannon Improved Matter Neutralizer > --- INVENTORY -------- Cooled VTOL Module Plasma Rifle Advanced EMP Blaster Improved Remote Datajack Improved Remote Datajack [Rating: 115] Favorites ----------- Power Micro Antimatter Reactor Engine Light Ion Engine Power Core Nuclear Core Reactor Micro Antimatter Reactor Propulsion Armored Wheel Treads Light Treads Wheel Armored Wheel Hover Unit Gyrokinetic Inverter Flight Unit Cooled VTOL Module Utility Machine Analyzer Device Improved Sensor Array Storage High-capacity Storage Unit Processor Machine Analyzer Hackware Hacking Suite Protection Reactive Plating Weapon Flak Cannon Energy Gun Heavy Particle Gun Energy Cannon Improved Matter Neutralizer Ballistic Gun Light Assault Rifle Ballistic Cannon Flak Cannon Launcher Advanced EMP Blaster Special Weapon Improved Remote Datajack Impact Weapon Heavy Hammer Build | -11 -10 -9 -8 -8 -8 -8 -6 -5 -5 -4 -4 -3 -3 -2 -2 -2 ------- Run | Yrd Mat Mat Mat Sto Rec Scr Fac Fac Gar Fac Ext Res Gar Res Gar Res Slots Evolved 16 | . . 2 2 . . . 4 2 . 2 . 2 . 2 . . Power 1 | . . . . . . . 1 . . . . . . . . . Propulsion 2 | . . . . . . . 2 . . . . . . . . . Utility 13 | . . 2 2 . . . 1 2 . 2 . 2 . 2 . . Weapon . | . . . . . . . . . . . . . . . . . Parts Attached 68 | 6 2 9 5 2 . . 10 6 . 8 7 6 3 . . 4 Power 8 | 1 . . . 1 . . 1 1 . 1 1 . . . . 2 Engine 2 | 1 . . . . . . 1 . . . . . . . . . Core 2 | . . . . 1 . . . 1 . . . . . . . . Reactor 4 | . . . . . . . . . . 1 1 . . . . 2 Propulsion 19 | 2 . 5 . . . . 4 1 . 2 2 1 . . . 2 Treads 2 | . . 2 . . . . . . . . . . . . . . Leg . | . . . . . . . . . . . . . . . . . Wheel 4 | 2 . 2 . . . . . . . . . . . . . . Hover 8 | . . 1 . . . . . . . 2 2 1 . . . 2 Flight 5 | . . . . . . . 4 1 . . . . . . . . Utility 28 | 1 2 3 2 1 . . 4 3 . 4 3 3 2 . . . Device 6 | . . 1 1 . . . . 1 . 1 . 2 . . . . Storage 2 | 1 1 . . . . . . . . . . . . . . . Processor 10 | . 1 1 . . . . 4 2 . . 1 1 . . . . Hackware 9 | . . 1 . 1 . . . . . 3 2 . 2 . . . Protection 1 | . . . 1 . . . . . . . . . . . . . Artifact . | . . . . . . . . . . . . . . . . . Weapon 13 | 2 . 1 3 . . . 1 1 . 1 1 2 1 . . . Energy Gun 2 | . . . 1 . . . . . . . 1 . . . . . Energy Cannon 2 | . . . . . . . . . . . . 2 . . . . Ballistic Gun 3 | 2 . . . . . . . 1 . . . . . . . . Ballistic Cannon 1 | . . . 1 . . . . . . . . . . . . . Launcher 1 | . . . . . . . 1 . . . . . . . . . Special Weapon 2 | . . . . . . . . . . 1 . . 1 . . . Impact Weapon 2 | . . 1 1 . . . . . . . . . . . . . Slashing Weapon . | . . . . . . . . . . . . . . . . . Piercing Weapon . | . . . . . . . . . . . . . . . . . Special Melee Weapon . | . . . . . . . . . . . . . . . . . Unidentified Prototypes 6 | . . . 1 . . . 2 1 . . 1 1 . . . . Corrupted Parts 1 | . . . . . . . . . . . 1 . . . . . System Corruption 1 | . . . . . . . . . . . 1 . . . . . Parts Lost 21 | . . 5 . . . . . . 6 . 2 . 7 . 1 . Power 5 | . . 1 . . . . . . 1 . 1 . 2 . . . Propulsion 4 | . . 1 . . . . . . 1 . . . 2 . . . Utility 6 | . . 1 . . . . . . 2 . 1 . 1 . 1 . Weapon 6 | . . 2 . . . . . . 2 . . . 2 . . . Highest Loss Streak 6 | . . 2 . . . . . . 6 . 2 . 4 . 1 . To Critical Strikes . | . . . . . . . . . . . . . . . . . Average Backups 9 | . 2 9 13 20 20 19 6 2 4 3 3 4 4 1 1 1 Power . | . . . . . . . . . . . 1 . . . . . Propulsion 2 | . . 3 4 6 5 5 . . 1 1 1 1 . . . . Utility 3 | . 1 3 4 6 8 7 2 . 1 . . . . 1 1 1 Weapon 2 | . . 2 3 6 6 6 1 1 1 1 . 1 1 . . . Tool/Special . | . . . . . . . . . . . . . . . . . Unused Backups 17 | . . . 2 2 . 1 9 . . . . 1 1 . . 1 Power 1 | . . . . . . . . . . . . 1 . . . . Propulsion 3 | . . . 1 1 . . 1 . . . . . . . . . Utility 8 | . . . . 1 . 1 4 . . . . . 1 . . 1 Weapon 4 | . . . 1 . . . 3 . . . . . . . . . Tool/Special 1 | . . . . . . . 1 . . . . . . . . . Average Slot Usage (%) 83 | . 90 81 84 94 100 100 81 87 87 65 79 91 74 8 6 10 Engine 1 | . 14 4 . . . . 2 . . . 1 . . . . . Core 2 | . . . . 4 9 9 3 4 4 . . . . . . . Reactor 1 | . . . . . . . . . . 1 5 9 6 . . 1 Wheel 9 | . 28 14 18 18 18 18 2 . . . . . . . . . Hover 4 | . . . . . . . . . . 9 10 19 13 . . 4 Flight 2 | . . . . . . . 20 23 21 . . . . . . . Device 7 | . . 7 8 9 9 9 6 9 10 6 7 6 7 . . . Storage 5 | . 14 11 9 9 9 9 . . . . . . . . . . Processor 19 | . 4 13 18 18 18 18 27 35 33 26 26 23 18 . . . Hackware 11 | . . 10 9 9 9 9 6 5 5 15 20 23 19 8 6 4 Protection 2 | . . . 5 8 9 9 1 . . . . . . . . . Energy Gun 3 | . . . 5 9 9 9 1 . . . 1 2 . . . . Ballistic Gun 2 | . 28 8 . . . . . . 4 . . . . . . . Ballistic Cannon 3 | . . . 5 9 9 9 6 5 3 . . . . . . . Impact Weapon 1 | . . 6 5 . . . . . . . . . . . . . Peak Build Rating 115 | 6 11 17 31 34 34 35 52 71 71 65 96 115 110 8 8 52 Average Rating 45 | 3 7 15 25 32 34 34 45 62 65 52 71 101 87 8 6 22 On Entrance 36 | . 6 11 15 31 34 34 35 51 71 40 65 96 110 8 8 3 Avg Prop Armor Cover (%) 6 | . . 4 . . . . . . 19 6 . . . . . . Naked Turns 28 | . . . . . . . . . . . . . 28 . . . Heaviest Build 67 | 10 45 48 60 67 67 67 67 24 21 15 29 45 45 . . 34 Greatest Support 52 | 32 32 43 24 24 24 24 24 22 28 22 36 36 36 3 3 52 Greatest Overweight (x) 8 | . 1 3 2 2 2 2 8 1 . 1 . 1 1 . . . Average Overweight (x) . | . . 1 1 2 2 2 . . . . . . . . . . Largest Inventory Capacity 20 | 8 20 20 20 20 20 20 20 5 5 5 5 5 5 5 5 5 Average Capacity 12 | 6 14 20 20 20 20 20 6 5 5 5 5 5 5 5 5 5 Most Carried 20 | . 12 11 20 20 20 20 20 5 5 5 4 5 5 1 1 1 Average Carried 9 | . 3 9 14 19 20 19 6 3 4 3 3 4 4 1 1 1 Final Capacity 20 | 8 20 20 20 20 20 20 5 5 5 5 5 5 5 5 5 5 Final Carried 20 | . 12 10 20 20 20 20 5 5 5 3 4 5 1 1 1 1 Class Distribution -------------------- 54% | Mutant 19% | Hacker-Scout 8% | Scout 7% | Hacker-Skirmisher 3% | Scavenger-Mutant Dominant Class ---------------- Mutant | -10/Materials Mutant | -9/Materials Mutant | -8/Materials Mutant | -8/Storage Mutant | -8/Recycling Mutant | -8/Scraptown Sprinter | -6/Factory Scout | -5/Factory Scout | -5/Garrison Hacker-Scout | -4/Factory Hacker-Scout | -4/Extension Hacker-Scout | -3/Research Hacker-Skirmisher | -3/Garrison Mutant | -2/Research Mutant | -2/Garrison Mutant | -2/Research Resources | -11 -10 -9 -8 -8 -8 -8 -6 -5 -5 -4 -4 -3 -3 -2 -2 -2 ----------- Run | Yrd Mat Mat Mat Sto Rec Scr Fac Fac Gar Fac Ext Res Gar Res Gar Res Matter Collected 1395 | 226 102 118 46 50 70 . 80 . 63 . 565 . 75 . . . Remotely . | . . . . . . . . . . . . . . . . . Salvage Created 1141 | . 255 361 97 50 . . 9 . 63 . 207 . 99 . . . Parts 73 | . 24 20 12 3 . . 2 . 2 . 7 . 3 . . . Haulers Intercepted 2 | . 1 1 . . . . . . . . . . . . . . Recyclers Shooed 1 | . . . 1 . . . . . . . . . . . . . Parts Field Recycled . | . . . . . . . . . . . . . . . . . Retrieved Matter . | . . . . . . . . . . . . . . . . . Parts Self-Destructed . | . . . . . . . . . . . . . . . . . Prevented . | . . . . . . . . . . . . . . . . . Parts Restored . | . . . . . . . . . . . . . . . . . Kills | -11 -10 -9 -8 -8 -8 -8 -6 -5 -5 -4 -4 -3 -3 -2 -2 -2 ------- Run | Yrd Mat Mat Mat Sto Rec Scr Fac Fac Gar Fac Ext Res Gar Res Gar Res Combat Hostiles Destroyed 23 | . 5 8 5 1 . . . . 1 . 2 . 1 . . . Melee 3 | . . 2 1 . . . . . . . . . . . . . Guns 16 | . 5 4 4 . . . . . 1 . 2 . . . . . Cannons 1 | . . . . 1 . . . . . . . . . . . . Classes Destroyed 8 | . 6 2 . . . . . . . . . . . . . . Tunneler 1 | . 1 . . . . . . . . . . . . . . . Hauler 2 | . 1 1 . . . . . . . . . . . . . . Mechanic 1 | . 1 . . . . . . . . . . . . . . . Operator 4 | . 1 . . . . . 1 . . . 2 . . . . . Watcher 2 | . . 2 . . . . . . . . . . . . . . Swarmer 10 | . 3 3 4 . . . . . . . . . . . . . Grunt 6 | . 2 2 . . . . . . . . 2 . . . . . Sentry 7 | . . 3 1 1 . . . . 1 . . . 1 . . . Best Kill Streak 4 | . 3 3 4 1 . . 1 . 1 . 3 . 1 . . . Combat Bots Only 4 | . 3 3 4 1 . . . . 1 . 2 . 1 . . . Max Kills in Single Turn 1 | . 1 1 1 1 . . 1 . 1 . 1 . 1 . . . Gunslinging . | . . . . . . . . . . . . . . . . . Exploded . | . . . . . . . . . . . . . . . . . Melee 1 | . . 1 1 . . . . . . . . . . . . . Uniques/NPCs Destroyed . | . . . . . . . . . . . . . . . . . Combat | -11 -10 -9 -8 -8 -8 -8 -6 -5 -5 -4 -4 -3 -3 -2 -2 -2 -------- Run | Yrd Mat Mat Mat Sto Rec Scr Fac Fac Gar Fac Ext Res Gar Res Gar Res Hostile Shots Fired 470 | . 22 66 26 4 . . 9 1 83 . 38 . 134 . 85 2 Missed 164 | . 7 12 5 2 . . 7 . 33 . 25 . 51 . 22 . Hits 306 | . 15 54 21 2 . . 2 1 50 . 13 . 83 . 63 2 Projectile 306 | . 15 54 21 2 . . 2 1 50 . 13 . 83 . 63 2 Critical Strikes 16 | . . 5 1 . . . . . . . 2 . 5 . 3 . Damage Taken 5239 | . 130 684 162 25 . . 15 23 688 . 318 . 1719 . 1426 49 Core 3169 | . 45 264 31 . . . . 23 124 . 61 . 1159 . 1413 49 Absorbed by Shields 484 | . . . . . . . . . 81 . 93 . 155 . 155 . Ignored by Resistances 37 | . . . 34 3 . . . . . . . . . . . . Core Remaining (%) 74 | 100 82 34 . . . 94 100 . 85 . 94 . 10 . . . Volleys Fired 152 | . 26 21 7 4 . . 2 . 8 17 49 1 17 . . . Largest 2 | . 2 2 2 2 . . 1 . 2 1 1 2 2 . . . Hottest 207 | . 40 40 92 92 . . 37 . 70 7 75 207 207 . . . Shots Fired 219 | . 52 39 14 8 . . 2 . 13 17 50 2 22 . . . Gun 126 | . 52 39 7 4 . . . . 8 . 16 . . . . . Cannon 38 | . . . 7 4 . . 2 . 5 . . 2 18 . . . Launcher 4 | . . . . . . . . . . . 4 . . . . . Special 51 | . . . . . . . . . . 17 30 . 4 . . . Kinetic 117 | . 52 39 7 4 . . 2 . 13 . . . . . . . Thermal 41 | . . . 7 4 . . . . . . 16 1 13 . . . Explosive . | . . . . . . . . . . . . . . . . . Electromagnetic 10 | . . . . . . . . . . . 4 1 5 . . . Robot Hit Streak 18 | . 6 16 18 1 . . 4 . 5 3 10 . 5 . . . Robot Miss Streak 7 | . 2 3 7 3 . . 3 . 1 2 2 . 2 . . . Penetration Max . | . . . . . . . . . . . . . . . . . Secondary Targets 2 | . 2 . . . . . . . . . . . . . . . Max Gunslinging Chain 1 | . 1 . . . . . . . . . . . . . . . Shots Hit Robots 148 | . 31 42 10 2 . . 2 . 3 10 35 . 13 . . . Core Hits 61 | . 16 15 10 4 . . 3 . 5 . 8 . . . . . Critical Kills . | . . . . . . . . . . . . . . . . . Critical Parts Destroyed 3 | . . 3 . . . . . . . . . . . . . . Critical Strikes 3 | . . 3 . . . . . . . . . . . . . . Smash 3 | . . 3 . . . . . . . . . . . . . . Melee Attacks 16 | . . 13 3 . . . . . . . . . . . . . Impact 16 | . . 13 3 . . . . . . . . . . . . . Slashing . | . . . . . . . . . . . . . . . . . Piercing . | . . . . . . . . . . . . . . . . . Sneak Attacks 1 | . . 1 . . . . . . . . . . . . . . Combat Hostiles . | . . . . . . . . . . . . . . . . . Follow-up Attacks 1 | . . . 1 . . . . . . . . . . . . . Damage Inflicted 2171 | . 272 689 303 41 . . 26 . 81 . 339 . 418 . 2 . Guns 862 | . 272 232 91 . . . . . 48 . 219 . . . . . Cannons 622 | . . . 104 41 . . 26 . 33 . . . 418 . . . Explosions 114 | . . . . . . . . . . . 114 . . . . . Melee 565 | . . 457 108 . . . . . . . . . . . . . Ramming 8 | . . . . . . . . . . . 6 . . . 2 . Kinetic 756 | . 272 232 104 41 . . 26 . 81 . . . . . . . Thermal 590 | . . . 91 . . . . . . . 219 . 280 . . . Explosive . | . . . . . . . . . . . . . . . . . Electromagnetic 252 | . . . . . . . . . . . 114 . 138 . . . Impact 565 | . . 457 108 . . . . . . . . . . . . . Slashing . | . . . . . . . . . . . . . . . . . Piercing . | . . . . . . . . . . . . . . . . . Highest Corruption 11 | . . . . . . . . . . . 2 . 11 . . . Average Corruption 2 | . . . . . . . . . . . 1 . 8 . . . Corruption Purged . | . . . . . . . . . . . . . . . . . Corruption Blocked . | . . . . . . . . . . . . . . . . . Effects 10 | . . . . . . . . . . . 4 . 6 . . . Message Errors 2 | . . . . . . . . . . . . . 2 . . . Matter Fused 2 | . . . . . . . . . . . 1 . 1 . . . Heat Flow Errors 2 | . . . . . . . . . . . 2 . . . . . Energy Discharges 1 | . . . . . . . . . . . . . 1 . . . Data Loss (minor) 1 | . . . . . . . . . . . 1 . . . . . Misdirections 2 | . . . . . . . . . . . . . 2 . . . Overload Shots . | . . . . . . . . . . . . . . . . . Overflow Damage 112 | . . 98 . . . . . . . . . . 14 . . . Projectiles 14 | . . . . . . . . . . . . . 14 . . . Explosions . | . . . . . . . . . . . . . . . . . Melee 98 | . . 98 . . . . . . . . . . . . . . Knockbacks 7 | . . . 5 . . . 1 . . . 1 . . . . . Impact 1 | . . . . . . . . . . . 1 . . . . . Kinetic 6 | . . . 5 . . . 1 . . . . . . . . . Secondary . | . . . . . . . . . . . . . . . . . Self-Inflicted Damage 65 | . . . . . . . . . . . 64 . . . 1 . Shots 3 | . . . . . . . . . . . 3 . . . . . Rammed 4 | . . . . . . . . . . . 1 . 1 . 2 . Targets Rammed 4 | . . . . . . . . . . . 1 . 1 . 2 . Kicked . | . . . . . . . . . . . . . . . . . Crushed . | . . . . . . . . . . . . . . . . . Highest Temperature 375 | . 6 24 60 24 . . . . 63 . 276 159 375 . 360 . Average Temperature 117 | . 6 4 35 14 . . . . 23 . 90 80 185 . 188 . Received Heat Transfer 1053 | . 12 285 36 9 . . 6 . 45 . 31 . 54 . 575 . Effects 6 | . . . . . . . . . . . . . 6 . . . Shutdowns 3 | . . . . . . . . . . . . . 3 . . . Energy Bleed 1 | . . . . . . . . . . . . . 1 . . . Interference 2 | . . . . . . . . . . . . . 2 . . . Siege Activations . | . . . . . . . . . . . . . . . . . Martial Activations . | . . . . . . . . . . . . . . . . . Shielding Activations . | . . . . . . . . . . . . . . . . . Robots Disrupted . | . . . . . . . . . . . . . . . . . Combat Hostiles . | . . . . . . . . . . . . . . . . . Robots Corrupted 3 | . . 2 . . . . . . . . . . 1 . . . Combat Hostiles 3 | . . 2 . . . . . . . . . . 1 . . . Parts Fried 4 | . . 2 . . . . . . . . . . 2 . . . Impact Corruptions 3 | . . 3 . . . . . . . . . . . . . . Robots Melted . | . . . . . . . . . . . . . . . . . Combat Hostiles . | . . . . . . . . . . . . . . . . . Parts Melted 2 | . . . 1 . . . . . . . 1 . . . . . Heat Transferred 907 | . . . 185 . . . . . . . 500 . 222 . . . Parts Sabotaged . | . . . . . . . . . . . . . . . . . Parts Stolen . | . . . . . . . . . . . . . . . . . Parts Stripped . | . . . . . . . . . . . . . . . . . Power Chain Reactions . | . . . . . . . . . . . . . . . . . Alert | -11 -10 -9 -8 -8 -8 -8 -6 -5 -5 -4 -4 -3 -3 -2 -2 -2 ------- Run | Yrd Mat Mat Mat Sto Rec Scr Fac Fac Gar Fac Ext Res Gar Res Gar Res Maximum Alert Level 2 | . . . . . . . . . . . 2 1 . . . . Low Security (%) 87 | 100 100 100 100 100 100 . 100 100 100 100 33 80 100 100 100 100 Level 1 11 | . . . . . . . . . . . 60 19 . . . . Level 2 1 | . . . . . . . . . . . 6 . . . . . Level 3 . | . . . . . . . . . . . . . . . . . Level 4 . | . . . . . . . . . . . . . . . . . Level 5 . | . . . . . . . . . . . . . . . . . High Security . | . . . . . . . . . . . . . . . . . Max Security . | . . . . . . . . . . . . . . . . . Peak Influence 447 | . 100 70 80 30 8 . 72 35 117 60 447 227 184 89 116 65 Initial 227 | . . 4 4 20 . . . 35 . 60 . 227 69 89 51 65 Average 71 | . 52 31 16 5 . . 7 9 65 13 225 156 114 82 54 54 Influence Increases 2341 | . 162 264 124 45 17 . 132 21 177 . 1109 15 200 . 75 . Destroy 0b10 Robot/C 1020 | . 100 160 100 20 . . . . 20 . 580 . 40 . . . Destroy 0b10 Robot/NC 60 | . 20 15 . . . . 5 . . . 20 . . . . . Destroy Leader 122 | . 12 46 20 10 . . . . . . 34 . . . . . Allied During Kill 362 | . . . . . . . . . . . 357 . 5 . . . Successful Hack 77 | . . 13 4 . 17 . 22 6 12 . 3 . . . . . Disable Machine 45 | . . . . 15 . . . . . . 15 15 . . . . Anti-Garrison Action 100 | . . . . . . . . . 50 . . . 50 . . . Destroy Structure 45 | . . . . . . . . . 20 . 10 . 15 . . . Partial Spotted 120 | . . . . . . . 75 . . . 30 . . . 15 . Lose Combat Pursuer 390 | . 30 30 . . . . 30 15 75 . 60 . 90 . 60 . Influence Decreases 2296 | . 150 264 86 95 17 . 60 93 60 117 676 356 133 90 28 71 Entered New Map 508 | . . 8 8 30 . . . 37 . 57 . 206 23 70 18 51 Time Decay 1188 | . 150 216 78 65 17 . 60 56 . 60 296 150 . 20 . 20 Lost Part 200 | . . 40 . . . . . . 60 . 20 . 70 . 10 . Lost Ally 400 | . . . . . . . . . . . 360 . 40 . . . Squads Dispatched 11 | . 1 . . . . . 3 . . 1 4 . . . . 2 Investigation 4 | . . . . . . . . . . . 3 . . . . 1 Extermination 2 | . . . . . . . 2 . . . . . . . . . Reinforcement 5 | . 1 . . . . . 1 . . 1 1 . . . . 1 Assault . | . . . . . . . . . . . . . . . . . Garrison . | . . . . . . . . . . . . . . . . . Intercept . | . . . . . . . . . . . . . . . . . Searches Triggered . | . . . . . . . . . . . . . . . . . Construction Impeded . | . . . . . . . . . . . . . . . . . Haulers Reinforced . | . . . . . . . . . . . . . . . . . Active Scanning Responses . | . . . . . . . . . . . . . . . . . Cargo Convoy Interrupts . | . . . . . . . . . . . . . . . . . Stealth | -11 -10 -9 -8 -8 -8 -8 -6 -5 -5 -4 -4 -3 -3 -2 -2 -2 --------- Run | Yrd Mat Mat Mat Sto Rec Scr Fac Fac Gar Fac Ext Res Gar Res Gar Res Distress Signals 3 | . . 2 . . . . 1 . . . . . . . . . Communications Jammed . | . . . . . . . . . . . . . . . . . Distress Signals . | . . . . . . . . . . . . . . . . . Times Spotted 119 | . 11 15 5 1 . . 7 2 14 3 33 2 15 . 9 2 Peak Tracking Total 11 | . 4 3 5 1 . . 7 1 11 3 4 2 7 . 9 2 Tactical Retreats 13 | . 1 2 . . . . 1 1 2 . 2 . 3 . 1 . Traps | -11 -10 -9 -8 -8 -8 -8 -6 -5 -5 -4 -4 -3 -3 -2 -2 -2 ------- Run | Yrd Mat Mat Mat Sto Rec Scr Fac Fac Gar Fac Ext Res Gar Res Gar Res Traps Triggered 17 | . . 1 . 2 . . . . 5 . 3 . 4 . 2 . Indirectly . | . . . . . . . . . . . . . . . . . Trap Hack Attempts . | . . . . . . . . . . . . . . . . . Triggered . | . . . . . . . . . . . . . . . . . Disarmed . | . . . . . . . . . . . . . . . . . Reprogrammed . | . . . . . . . . . . . . . . . . . Reused . | . . . . . . . . . . . . . . . . . Traps Extracted . | . . . . . . . . . . . . . . . . . Installed . | . . . . . . . . . . . . . . . . . Triggered . | . . . . . . . . . . . . . . . . . Machines | -11 -10 -9 -8 -8 -8 -8 -6 -5 -5 -4 -4 -3 -3 -2 -2 -2 ---------- Run | Yrd Mat Mat Mat Sto Rec Scr Fac Fac Gar Fac Ext Res Gar Res Gar Res Machines Disabled 6 | . . . . 1 . . . . 1 . 2 1 1 . . . Max in Single Turn 1 | . . . . 1 . . . . 1 . 1 1 1 . . . Garrison Relay 2 | . . . . . . . . . 1 . . . 1 . . . Machines Repaired . | . . . . . . . . . . . . . . . . . Machines Dismantled . | . . . . . . . . . . . . . . . . . Machines Sabotaged . | . . . . . . . . . . . . . . . . . Overloaded Fab Kills . | . . . . . . . . . . . . . . . . . Hacking | -11 -10 -9 -8 -8 -8 -8 -6 -5 -5 -4 -4 -3 -3 -2 -2 -2 --------- Run | Yrd Mat Mat Mat Sto Rec Scr Fac Fac Gar Fac Ext Res Gar Res Gar Res Machines Accessed 43 | . 2 4 1 4 4 . 5 3 1 2 10 4 1 1 . 1 Terminals 33 | . 2 3 1 4 3 . 3 2 1 1 9 2 1 . . 1 Fabricators . | . . . . . . . . . . . . . . . . . Repair Stations 1 | . . . . . . . . . . . 1 . . . . . Recycling Units 2 | . . . . . . . . . . 1 . 1 . . . . Scanalyzers 3 | . . 1 . . . . 2 . . . . . . . . . Garrison Access 3 | . . . . . . . . 1 . . . 1 . 1 . . Total Hacks 111 | . 6 13 2 10 22 . 11 5 2 3 19 12 2 2 . 2 Successful 73 | . 3 10 1 6 17 . 4 2 1 2 14 10 1 2 . . Failed 37 | . 3 2 1 4 5 . 7 3 1 1 5 2 1 . . 2 Catastrophic 4 | . . . . 1 . . 1 1 . . . . . . . 1 Database Lockouts 1 | . . 1 . . . . . . . . . . . . . . Manual 36 | . 1 6 2 9 6 . 1 . . . 6 5 . . . . Terminals 83 | . 6 9 2 10 14 . 7 4 2 1 17 7 2 . . 2 Fabricators . | . . . . . . . . . . . . . . . . . Repair Stations 2 | . . . . . . . . . . . 2 . . . . . Recycling Units 5 | . . . . . . . . . . 2 . 3 . . . . Scanalyzers 8 | . . 4 . . . . 4 . . . . . . . . . Garrison Access 5 | . . . . . . . . 1 . . . 2 . 2 . . Terminal Hacks 46 | . 3 3 . 3 15 . 2 1 1 1 13 3 1 . . . Record 18 | . . . . 2 10 . . . . . 6 . . . . . Prototype ID Bank 1 | . . 1 . . . . . . . . . . . . . . Open Door 8 | . . . . 1 . . . . . 1 6 . . . . . Level Access Points 1 | . . . . . . . 1 . . . . . . . . . Branch Access Points 1 | . . . . . 1 . . . . . . . . . . . Emergency Access Points 1 | . . . . . . . . . 1 . . . . . . . Machine Index 2 | . . . . . 1 . . . . . 1 . . . . . Terminal Index 3 | . . 1 . . 1 . . . . . . 1 . . . . Locate Traps 5 | . 2 1 . . . . 1 . . . . 1 . . . . Registered Components 1 | . . . . . . . . 1 . . . . . . . . Zone Layout 4 | . 1 . . . 2 . . . . . . 1 . . . . Security Stations 1 | . . . . . . . . . . . . . 1 . . . Fabricator Hacks . | . . . . . . . . . . . . . . . . . Repair Station Hacks 1 | . . . . . . . . . . . 1 . . . . . Refit 1 | . . . . . . . . . . . 1 . . . . . Recycling Unit Hacks 2 | . . . . . . . . . . 1 . 1 . . . . Report Inventory 1 | . . . . . . . . . . . . 1 . . . . Retrieve Components 1 | . . . . . . . . . . 1 . . . . . . Scanalyzer 4 | . . 3 . . . . 1 . . . . . . . . . Retrieve Study 4 | . . 3 . . . . 1 . . . . . . . . . Garrison Access Hacks 5 | . . . . . . . . 1 . . . 2 . 2 . . Unlock Access 3 | . . . . . . . . 1 . . . 1 . 1 . . Coupler Status 2 | . . . . . . . . . . . . 1 . 1 . . Unauthorized Hacks 15 | . . 4 1 3 2 . 1 . . . . 4 . . . . Terminals 13 | . . 4 1 3 2 . 1 . . . . 2 . . . . Botnet 11 | . . 2 1 3 2 . 1 . . . . 2 . . . . Disrupt 1 | . . 1 . . . . . . . . . . . . . . Operators 1 | . . 1 . . . . . . . . . . . . . . Fabricators . | . . . . . . . . . . . . . . . . . Repair Stations . | . . . . . . . . . . . . . . . . . Recycling Units 2 | . . . . . . . . . . . . 2 . . . . Monitor 1 | . . . . . . . . . . . . 1 . . . . Recyclers 1 | . . . . . . . . . . . . 1 . . . . Scanalyzers . | . . . . . . . . . . . . . . . . . Garrison Access . | . . . . . . . . . . . . . . . . . Data Cores Recovered 1 | . . . . . . . . . . . 1 . . . . . Used . | . . . . . . . . . . . . . . . . . Hacking Detections 27 | . 2 2 1 3 1 . 5 2 1 1 4 3 . 1 . 1 Full Trace Events 1 | . . . . . . . . . . . . . . . . 1 Feedback Events . | . . . . . . . . . . . . . . . . . Feedback Blocked . | . . . . . . . . . . . . . . . . . Robot Schematics Acquired . | . . . . . . . . . . . . . . . . . Robots Built . | . . . . . . . . . . . . . . . . . Authchips . | . . . . . . . . . . . . . . . . . Time . | . . . . . . . . . . . . . . . . . Total Robot Build Rating . | . . . . . . . . . . . . . . . . . Part Schematics Acquired . | . . . . . . . . . . . . . . . . . Parts Built . | . . . . . . . . . . . . . . . . . Authchips . | . . . . . . . . . . . . . . . . . Time . | . . . . . . . . . . . . . . . . . Total Part Build Rating . | . . . . . . . . . . . . . . . . . Part Studies Acquired 4 | . . 3 . . . . 1 . . . . . . . . . Parts Repaired . | . . . . . . . . . . . . . . . . . Time . | . . . . . . . . . . . . . . . . . Parts Recycled . | . . . . . . . . . . . . . . . . . Recycled Matter . | . . . . . . . . . . . . . . . . . Retrieved Matter . | . . . . . . . . . . . . . . . . . Retrieved Components 3 | . . . . . . . . . . 3 . . . . . . Parts Scanalyzed . | . . . . . . . . . . . . . . . . . Part Schematics Acquired . | . . . . . . . . . . . . . . . . . Parts Damaged . | . . . . . . . . . . . . . . . . . Bothacking | -11 -10 -9 -8 -8 -8 -8 -6 -5 -5 -4 -4 -3 -3 -2 -2 -2 ------------ Run | Yrd Mat Mat Mat Sto Rec Scr Fac Fac Gar Fac Ext Res Gar Res Gar Res Used RIF Installer 2 | . . . . . . . . . 1 . . . . . 1 . Program Shield 1 | . . . . . . . . . . . . . . . 1 . Robots Hacked 13 | . . . . . . . . . . 4 7 . 2 . . . Non-combat 6 | . . . . . . . . . . 4 2 . . . . . Combat 7 | . . . . . . . . . . . 5 . 2 . . . Robot Hacks Applied 16 | . . . . . . . . . . 7 7 . 2 . . . parse_system 3 | . . . . . . . . . . 1 2 . . . . . map_walls 2 | . . . . . . . . . . 1 1 . . . . . locate_traps 1 | . . . . . . . . . . 1 . . . . . . map_route 2 | . . . . . . . . . . 2 . . . . . . mark_security 1 | . . . . . . . . . . 1 . . . . . . reboot_system 1 | . . . . . . . . . . . 1 . . . . . overwrite_iff 5 | . . . . . . . . . . . 3 . 2 . . . streamctrl_low 1 | . . . . . . . . . . 1 . . . . . . Relay Couplers Released 9 | . . . . . . . . . 4 . . . 5 . . . Machine Destruction 9 | . . . . . . . . . 4 . . . 5 . . . Attached 4 | . . . . . . . . . . 2 . . 2 . . . Fabnet Peak Effective % . | . . . . . . . . . . . . . . . . . Robots Rewired 10 | . . . . . . . . . . . 10 . . . . . Allies Hacked . | . . . . . . . . . . . . . . . . . Hacks Repelled . | . . . . . . . . . . . . . . . . . Allies | -11 -10 -9 -8 -8 -8 -8 -6 -5 -5 -4 -4 -3 -3 -2 -2 -2 -------- Run | Yrd Mat Mat Mat Sto Rec Scr Fac Fac Gar Fac Ext Res Gar Res Gar Res Total Allies 25 | . . . . . . . . . . 1 22 . 2 . . . Largest Group 14 | . . . . . . . . . . 1 14 1 2 . . . Highest-Rated Group 710 | . . . . . . . . . . 26 710 159 60 . . . Highest-Rated Ally 159 | . . . . . . . . . . 26 159 159 30 . . . Total Orders . | . . . . . . . . . . . . . . . . . Ally Attacks 162 | . . . . . . . . . . . 152 . 10 . . . Total Damage 5201 | . . . . . . . . . . . 5071 . 130 . . . Kills 30 | . . . . . . . . . . . 29 . 1 . . . Allies Corrupted . | . . . . . . . . . . . . . . . . . Allies Melted 1 | . . . . . . . . . . . 1 . . . . . Intel | -11 -10 -9 -8 -8 -8 -8 -6 -5 -5 -4 -4 -3 -3 -2 -2 -2 ------- Run | Yrd Mat Mat Mat Sto Rec Scr Fac Fac Gar Fac Ext Res Gar Res Gar Res Active Infowar (turns) 5008 | . 132 572 385 298 522 690 302 233 132 312 810 307 313 . . . Optics 2226 | . . . . . . . 119 233 132 312 810 307 313 . . . Sensors 4286 | . . . 367 298 522 690 302 233 132 312 810 307 313 . . . Terrain 383 | . . 383 . . . . . . . . . . . . . . T.N.C. 3815 | . . 138 385 298 522 690 302 233 132 312 803 . . . . . Machine Analysis 4980 | . 132 572 385 298 522 690 302 233 132 312 810 307 285 . . . Cloaking 307 | . . . . . . . . 190 117 . . . . . . . Robot Analysis Total . | . . . . . . . . . . . . . . . . . Derelict Logs Recovered . | . . . . . . . . . . . . . . . . . Drone Launches . | . . . . . . . . . . . . . . . . . Drone Recoveries . | . . . . . . . . . . . . . . . . . Exploration | -11 -10 -9 -8 -8 -8 -8 -6 -5 -5 -4 -4 -3 -3 -2 -2 -2 ------------- Run | Yrd Mat Mat Mat Sto Rec Scr Fac Fac Gar Fac Ext Res Gar Res Gar Res Turns Passed 5579 | 63 362 572 385 298 522 690 302 233 132 312 810 307 393 44 95 59 Spaces Moved 6042 | 64 255 294 250 229 436 570 854 597 333 399 702 382 322 88 168 99 Core 693 | 18 . . . . . . 2 . 8 223 . . 133 88 168 53 Treads 68 | . . 68 . . . . . . . . . . . . . . Legs . | . . . . . . . . . . . . . . . . . Wheels 2041 | 46 255 226 250 229 436 570 29 . . . . . . . . . Hover 1495 | . . . . . . . . . . 176 702 382 189 . . 46 Flight 1745 | . . . . . . . 823 597 325 . . . . . . . Fastest Speed 18 | 50 100 105 105 120 120 120 26 26 18 50 53 53 50 50 50 50 Average Speed 74 | 85 108 151 114 120 120 120 31 26 27 64 65 69 82 50 50 52 Slowest Speed 450 | 100 115 320 120 120 120 120 450 91 50 110 66 103 104 50 50 60 Overloaded Moves 54 | . . . . . . . . . 54 . . . . . . . Propulsion Burnouts . | . . . . . . . . . . . . . . . . . Robots Hopped 4 | . . . . . . . 4 . . . . . . . . . Potential Cave-ins . | . . . . . . . . . . . . . . . . . Cave-ins Triggered . | . . . . . . . . . . . . . . . . . Exploration Rate (%) 29 | 5 49 29 15 32 76 48 23 13 40 9 78 11 42 2 31 4 Regions Visited 16 Branch Regions 4 Pre-discovered Areas . | . . . . . . . . . . . . . . . . . Known Exits Taken 6 | . . . . . . . 1 1 . 1 1 1 . 1 . . Unknown Exits Taken 7 | 1 1 1 1 1 1 1 . . . . . . . . . . Scrap Searched 2 | . . . . . . 2 . . . . . . . . . . Spaces Dug . | . . . . . . . . . . . . . . . . . Terrain Destroyed 7 | . . . . . . . . . 1 . . . 6 . . . Melee . | . . . . . . . . . . . . . . . . . Projectile 7 | . . . . . . . . . 1 . . . 6 . . . AOE . | . . . . . . . . . . . . . . . . . Terrain Rammed . | . . . . . . . . . . . . . . . . . Walls Destroyed . | . . . . . . . . . . . . . . . . . Machines Disabled . | . . . . . . . . . . . . . . . . . Actions | -11 -10 -9 -8 -8 -8 -8 -6 -5 -5 -4 -4 -3 -3 -2 -2 -2 --------- Run | Yrd Mat Mat Mat Sto Rec Scr Fac Fac Gar Fac Ext Res Gar Res Gar Res Total 6919 | 69 299 364 332 243 435 576 881 669 361 449 1023 421 430 87 177 103 Wait 463 | . 4 27 53 . . 2 5 62 . 22 233 27 28 . . . Move 6015 | 63 254 293 249 228 435 569 845 596 331 398 701 381 320 87 166 99 Hop 4 | . . . . . . . 4 . . . . . . . . . Pick Up 46 | . 12 . 13 3 . 1 5 2 2 1 2 1 4 . . . Fast Attach 45 | 6 2 2 3 4 . . 6 3 . 5 6 4 . . . 4 Attach 17 | . . 3 . . . . 3 2 . 3 2 . 4 . . . Detach 6 | . . . . . . . 1 1 . . 2 2 . . . . Swap 14 | . . 5 2 1 . . 1 2 . . 1 2 . . . . Drop 30 | . 1 . 3 3 . 1 9 1 2 3 . 3 4 . . . Fire 152 | . 26 21 7 4 . . 2 . 8 17 49 1 17 . . . Melee 15 | . . 13 2 . . . . . . . . . . . . . Ram 4 | . . . . . . . . . . . 1 . 1 . 2 . Kick . | . . . . . . . . . . . . . . . . . Crush . | . . . . . . . . . . . . . . . . . Escape Stasis 101 | . . . . . . . . . 18 . 26 . 52 . 5 . Rewire 7 | . . . . . . 3 . . . . . . . . 4 . Trap . | . . . . . . . . . . . . . . . . . Miscellaneous . | . . . . . . . . . . . . . . . . . Route ------- -11/Scrapyard -10/Materials -9/Materials -8/Materials -8/Storage -8/Recycling -8/Scraptown -6/Factory (discovered 4 exits: *Fac x4) -5/Factory -5/Garrison -4/Factory -4/Extension (discovered 2 exits: *Res / *Cet) -3/Research -3/Garrison -2/Research (discovered 2 exits: [*Tes] / Gar) -2/Garrison -2/Research History --------- Turn | Location | Event 7 | -11/Scrapyard | Discovered new exit (range 16) 64 | -11/Scrapyard | Entered Materials 315 | -10/Materials | Build established: Mutant 318 | -10/Materials | Discovered new exit (range 12) 426 | -10/Materials | Entered another Materials area 426 | -9/Materials | Evolved 2 slots: Utility x2 453 | -9/Materials | Central database locked down 817 | -9/Materials | Core integrity fell below 50% 981 | -9/Materials | Discovered new exit (range 15) 998 | -9/Materials | Entered another Materials area 998 | -8/Materials | Evolved 2 slots: Utility x2 1048 | -8/Materials | Discovered new exit (range 16) 1383 | -8/Materials | Entered Storage 1677 | -8/Storage | Used back door to open Recycling access 1677 | -8/Storage | Discovered new exit (range 4) 1681 | -8/Storage | Entered Recycling 2164 | -8/Recycling | Scanned before Scraplab entrance 2182 | -8/Recycling | Entered Scraplab 2199 | -8/Recycling | Discovered new exit (range 4) 2203 | -8/Recycling | Entered Scraptown 2450 | -8/Scraptown | Visited TADAMA 2480 | -8/Scraptown | Visited SPCMW 2523 | -8/Scraptown | Visited UFD Registry 2523 | -8/Scraptown | Registered with UFD as "Electroninja" 2556 | -8/Scraptown | Visited LU-1G1's Boring Crew 2621 | -8/Scraptown | Visited Scrapoid Research Area 2688 | -8/Scraptown | Visited A0-MCA Data Center 2710 | -8/Scraptown | Visited Chapter 10 2740 | -8/Scraptown | Visited Derelict Rescue Squad 2754 | -8/Scraptown | Found DRS Beacon 2781 | -8/Scraptown | Visited Scrap Suit Storage 2888 | -8/Scraptown | Discovered new exit (range 3) 2893 | -8/Scraptown | Entered Factory 2893 | -6/Factory | Evolved 4 slots: Power x1, Propulsion x2, Utility x1 3078 | -6/Factory | Identified exit to Factory 3195 | -6/Factory | Entered another Factory area 3195 | -5/Factory | Evolved 2 slots: Utility x2 3382 | -5/Factory | Build established: Scout 3428 | -5/Factory | Identified exit to Garrison 3428 | -5/Factory | Entered Garrison 3468 | -5/Garrison | Triggered checkpoint 3478 | -5/Garrison | Garrison Relay disabled 3521 | -5/Garrison | Triggered checkpoint 3522 | -5/Garrison | Triggered checkpoint 3523 | -5/Garrison | Triggered checkpoint 3527 | -5/Garrison | Installed Relay Interface Framework 3553 | -5/Garrison | Discovered new exit (range 12) 3555 | -5/Garrison | Identified exit to Factory 3560 | -5/Garrison | Entered Factory 3560 | -4/Factory | Evolved 2 slots: Utility x2 3582 | -4/Factory | Lost 6 parts (1p1n2u2w) 3804 | -4/Factory | Discovered new exit (range 20) 3871 | -4/Factory | Identified exit to Extension 3872 | -4/Factory | Entered Extension 3991 | -4/Extension | Found Prototype Hackware 3991 | -4/Extension | Identified Exp. Hacking Suite 4004 | -4/Extension | Rescued a captive Derelict 4031 | -4/Extension | Build established: Hacker-Scout 4065 | -4/Extension | Rescued A7 4116 | -4/Extension | Rescued a captive Derelict 4117 | -4/Extension | Rescued a captive Derelict 4298 | -4/Extension | Spotted B-86 Titan 4306 | -4/Extension | Spotted B-86 Titan 4329 | -4/Extension | Rescued a captive Derelict 4330 | -4/Extension | Rescued a captive Derelict 4353 | -4/Extension | Rescued a captive Derelict 4355 | -4/Extension | Rescued a captive Derelict 4364 | -4/Extension | Lost 12 allies 4508 | -4/Extension | Rescued a captive Derelict 4639 | -4/Extension | Discovered new exit (range 10) 4639 | -4/Extension | Discovered new exit (range 6) 4645 | -4/Extension | Identified exit to Cetus 4646 | -4/Extension | Identified exit to Research 4682 | -4/Extension | Entered Research 4682 | -3/Research | Accompanied by 1 ally (A7) 4682 | -3/Research | Evolved 2 slots: Utility x2 4988 | -3/Research | Identified exit to Garrison 4989 | -3/Research | Entered Garrison 5013 | -3/Garrison | Learned Research security intel 5115 | -3/Garrison | Triggered checkpoint 5207 | -3/Garrison | Build established: Hacker-Skirmisher 5233 | -3/Garrison | Garrison Relay disabled 5289 | -3/Garrison | Heavy support dispatched to Research 5302 | -3/Garrison | Released all parts (15) 5329 | -3/Garrison | Lost 4 parts (2p1n1u) 5332 | -3/Garrison | Triggered checkpoint 5343 | -3/Garrison | Triggered checkpoint 5351 | -3/Garrison | Core integrity fell below 50% 5359 | -3/Garrison | System corruption reached 10% 5362 | -3/Garrison | Core integrity fell below 20% 5377 | -3/Garrison | Discovered new exit (range 10) 5382 | -3/Garrison | Entered Research 5382 | -2/Research | Evolved 2 slots: Utility x2 5382 | -2/Research | Discovered new exit (range 5) 5426 | -2/Research | Identified exit to Garrison 5426 | -2/Research | Entered Garrison 5483 | -2/Garrison | Spotted B-90 Cyclops 5492 | -2/Garrison | Triggered checkpoint 5493 | -2/Garrison | Core integrity fell below 50% 5504 | -2/Garrison | Expanded RIF knowledge: Program Shield 5506 | -2/Garrison | Core integrity fell below 20% 5517 | -2/Garrison | Discovered new exit (range 8) 5521 | -2/Garrison | Entered Research 5580 | -2/Research | Destroyed by H-88 Terminator with KE Penetrator Last Messages --------------- 05491_ Stasis field depleted. 05496_ Critical hit (Meltdown: +400). 05497_ B-90 Cyclops activates siege mode. Initiating installation procedure... 05504_ Expanded RIF knowledge: Program Shield. 05517_ EXIT=FOUND 05520_ Attempting to access garrison exit controls... RIF authorized. LOCATION=UNKNOWN GOAL=ESCAPE 05526_ Connecting with Terminal... 05526_ Current location identified: Research 05526_ ALERT: Suspicious activity at Terminal R002. Dispatching Investigation squad. 05548_ Acquired Antigrav Array. 05552_ ALERT: Suspicious intruders detected, dispatching Cutter reinforcements to area. 05568_ Acquired Quantum Reactor. 05573_ Acquired Lgt. Particle Reactor. 05580_ Penetrated by Slug. Map ----- +----------------------------------------------------+ | ?????????????????????????????????????????????????? | | ?????????????????????????????????????????????????? | | ?????????????????????????????????????????????????? | | ?????????????????????????????????????????????????? | | ?????????????????????????????????????????????????? | | ?????????????????????????????????????????????????? | | ?????????????????????????????????????????????????? | | ?????????????????????????????????????????????????? | | ?????????????????????????????????????????????????? | | ?????????????????????????????????????????????????? | | ??????????????????????? ???????????????????????? | | ?????????????????????# ???????????????????????? | | ?????????????????????# ???????????????????????? | | ?????????????????????+ ???????????????????????? | | ?????????????????????#h ???????????????????????? | | ?????????????????????# ???????????????????????? | | ?????????????#########kh ???????????????????????? | | ????????????? #??????????????????????? | | ???????????? #??????????????????????? | | ???????????? #??????????????????????? | | ????????????? R +??????????????########? | | ??????????????# #??????????????# ! #? | | ??????????????# #??????????????# * #? | | ??????????????# == #??????????????# #? | | ??????????????# == #####/########?# ] #? | | ??????????????# @# #?#! #? | | ??????????????# + !!! #??? ?? | | ??????????????+ ! # !!! ######+#### | | ??????????????# ######+# !!! + | | ??????????????# ?????????# #### ### | | ??????????????????????????# #??# #?? | | ??????????????????????????# #??# #?? | | ??????????????????????????# #??# #?# | | ??????????????????????????# #### #?# | | ??????????????????????????# + #?# | | ??????????????????????????# #### #?# | | ??????????????????????????# #??# ### | | ????????????????????#####+#####+######+#### T## | | ???????????????????? #? | | ??????????????????? ##? | | ??????????????????? #?? | | ??????????????????? #?? | | ??????????????????? ########?? | | ?????????????????????""" "" "" #????????? | | ??????????????????????"" ""T"" #????????? | | ??????????????????????"" """ #????????? | | ?????????????????????? #????????? | | ????????????????????? #????????? | | ????????????????????? +????????? | | ??????????????????????########+##### #????????? | +----------------------------------------------------+ Best States ------------- Heat Dissipation 49 Energy Generation 43 Energy Capacity 430 Matter Stores 300 Matter Capacity 300 Sight Range 22 Robot Scan Range 16 Terrain Scan Range 16 Terrain Scan Density 10 Cloak Strength 2 Corruption Containment 12 Armor Coverage 150 Resistance: KI 20 Evasion (%) 65 Targeting Accuracy 24 Core Analysis 6 Recoil Reduction 2 Offensive Hacking 38 Defensive Hacking 14 Relay Coupler Types 2 Relay Coupler Value 60 Item Schematics ----------------- None Robot Schematics ------------------ None Fabricated ------------ Nothing Repaired ---------- Nothing Studied --------- Com. Wheel | -9/Materials | Hacked Lgt. Ion Engine | -9/Materials | Hacked Hover Unit | -9/Materials | Hacked Nuclear Core | -6/Factory | Hacked Alien Tech Used ----------------- None Achievements -------------- Infodabbler Plot Armor Challenges ------------ None Game ------ Seed SuperquantumHybridHarness Manual? 0 Play Time 01:18:55 Cumulative 209.4 hours Start 2025.10.27 @ 19:16:01 End 2025.10.27 @ 21:29:20 Sessions 1 Manual Loads 0 Difficulty Rogue Special Mode None Game No. 251 Rogue 77 Adventurer 174 Explorer 0 Win Type - Total 1 Types 1/0/0/0/0/0/0/0/0/0 Lore% 53 Gallery% 58 Achievement% 39 Wizard Run 0 Options --------- Layout 0 ASCII 0 Keyboard 1 Movement Numpad Keybinds 0 Fullscreen 1 Font 18/Terminus Map View 76x50 Zoom Use 0% Tactical HUD 1 Map Filters NONE Filters NONE Steam 1 RUN: 21f8a958-ea69-496b-8f09-151c40b9ff89